{"text_format":"3","workbook":"xlsx","n_sheets":2,"sheets":["frente","dorso"],"not_rendered":{"defined_names":3},"read":"whole","date_system":"1900"}

{"sheet":"frente","index":0,"n_rows":139,"n_cols":60,"rows_kept":139,"merged":[[0,2,0,18],[0,23,0,40],[0,41,0,42],[1,41,1,42],[3,2,3,18],[3,23,3,39],[3,41,4,42],[4,2,4,19],[4,23,4,39],[5,2,5,18],[5,23,5,39],[7,2,7,18],[7,23,7,39],[8,8,8,12],[8,29,8,33],[9,5,9,16],[9,26,9,37],[10,2,10,13],[10,23,10,34],[11,2,11,16],[11,23,11,37],[12,2,12,16],[12,23,12,37],[15,3,15,6],[15,12,15,14],[15,17,15,18],[15,24,15,27],[15,33,15,35],[15,38,15,39],[16,38,16,39],[17,2,17,15],[17,23,17,36],[17,38,17,39],[18,2,18,7],[18,8,18,15],[18,23,18,28],[18,29,18,36],[19,2,19,15],[19,16,19,18],[19,23,19,36],[19,37,19,39],[20,2,20,7],[20,8,20,15],[20,16,20,18],[20,23,20,28],[20,29,20,36],[20,37,20,39],[21,2,21,4],[21,5,21,16],[21,23,21,25],[21,26,21,37],[24,2,24,3],[24,4,24,18],[24,23,24,24],[24,25,24,39],[25,5,25,6],[25,26,25,27],[27,2,27,3],[27,4,27,18],[27,23,27,24],[27,25,27,39],[30,2,30,3],[30,4,30,18],[30,23,30,24],[30,25,30,39],[31,2,31,18],[31,23,31,39],[32,2,32,18],[32,23,32,39],[33,2,33,18],[33,23,33,39],[35,2,35,3],[35,4,35,18],[35,23,35,24],[35,25,35,39],[36,2,36,7],[36,23,36,28],[38,2,38,3],[38,4,38,18],[38,23,38,24],[38,25,38,39],[41,2,41,3],[41,4,41,18],[41,23,41,24],[41,25,41,39],[43,2,43,3],[43,4,43,18],[43,23,43,24],[43,25,43,39],[50,4,50,8],[50,10,50,16],[50,25,50,29],[50,31,50,37],[51,4,51,8],[51,10,51,16],[51,25,51,29],[51,31,51,37],[57,4,57,8],[57,10,57,16],[57,25,57,29],[57,31,57,37],[58,4,58,8],[58,10,58,16],[58,25,58,29],[58,31,58,37],[63,7,63,11],[63,28,63,32]]}
[null,null,"FORMULARIOS PARA TRANSFERENCIAS INTERLIGAS",{"$nulls":20},"FORMULARIOS PARA TRANSFERENCIAS INTERLIGAS",{"$nulls":17},"5 EFECTOS",{"$nulls":11},"Enero",1,2019," ACADEMIA JAVIER MASCHERANO","LIGA DEPORTIVA DEL OESTE (JUNÍN)","***JUNIN***"]
[{"$nulls":4},"Rescision de Transferencia a prueba (007)",{"$nulls":20},"Rescision de Transferencia a prueba (007)",{"$nulls":14}," ","TAMAÑO HOJA LEGAL",{"$nulls":11},"Febrero",2,2020," ATL. SOC. Y DEP. DE LINCOLN JUVENTUD UNIDA","LIGA DEPORTIVA CENTRAL VEDIA","ATLETICO AMBOS MUNDOS","LIGA DEPORTIVA DEL OESTE (JUNÍN)"]
[{"$nulls":40}," ",{"$nulls":12},"Marzo",3,2021," ATLÉTICO ARGENTINO","LIGA DE FÚTBOL DE GENERAL VILLEGAS","ATLETICO BUENOS AIRES AL PACÍFICO","LIGA DEPORTIVA DEL OESTE (JUNÍN)"]
[null,null,"Liga Amateur de Deportes de Lincoln",{"$nulls":20},"Liga Amateur de Deportes de Lincoln",{"$nulls":16}," ","PARA CUANDO EL JUGADOR VUELVE AL CLUB DE NUESTRA LIGA",{"$nulls":11},"Abril",4,2022," ATLÉTICO BAYAUCA","LIGA DE FÚTBOL DEL OESTE (AMÉRICA/RIVADAVIA)","ATLETICO DEFENSA ARGENTINA","LIGA DEPORTIVA DEL OESTE (JUNÍN)"]
[null,null,{"$f":"X5","v":"Afiliada a la A.F.A.  -  Desp. Nº 10.170  - Estrada 1.230 - Lincoln - 6070 "},{"$nulls":20},"Afiliada a la A.F.A.  -  Desp. Nº 10.170  - Estrada 1.230 - Lincoln - 6070 ",{"$nulls":16}," ",{"$nulls":12},"Mayo",5,2023," ATLÉTICO EL LINQUEÑO","LIGA TOLDENSE DE FÚTBOL","ATLETICO INDEPENDIENTE ","LIGA DEPORTIVA DEL OESTE (JUNÍN)"]
[null,null,{"$f":"X6","v":"Teléfono fijo 02355 421081 Mail: ligalincoln@gmail.com"},{"$nulls":20},"Teléfono fijo 02355 421081 Mail: ligalincoln@gmail.com",{"$nulls":16}," ",{"$nulls":12},"Junio",6,2024," ATLÉTICO INDEPENDIENTE","LIGA DEPORTIVA DE GENERAL ARENALES","ATLETICO MARIANO MORENO","LIGA DEPORTIVA DEL OESTE (JUNÍN)"]
[{"$nulls":40}," ",{"$nulls":12},"Julio",7,2025," ATLÉTICO LAS TOSCAS","LIGA DEPORTIVA DE FÚTBOL (ROJAS)","ATLETICO RIVADAVIA","LIGA DEPORTIVA DEL OESTE (JUNÍN)"]
[null,null,"CONVENIO RESCICION DE TRANSFERENCIAS A PRUEBA art. 13º R.T.I.",{"$nulls":20},"CONVENIO RESCISION DE TRANSFERENCIAS A PRUEBA art. 13º R.T.I.",{"$nulls":16}," ",{"$nulls":12},"Agosto",8,2026," ATLÉTICO PASTEUR Y FERROCARRIL OESTE","LIGA CASARENSE DE FÚTBOL","ATLETICO RIVER PLATE","LIGA DEPORTIVA DEL OESTE (JUNÍN)"]
[{"$nulls":19}," ",{"$nulls":20}," ",{"$nulls":12},"Septiembre",9,2027," ATLÉTICO PINTENSE","LIGA DEPORTIVA DE SALTO","ATLETICO SARMIENTO","LIGA DEPORTIVA DEL OESTE (JUNÍN)"]
[{"$f":"REPT(\"-\",50)","v":"--------------------------------------------------"}," ","Del Club CESIONARIO",null,null,{"$f":"IF(AA10=\"\",\"FALTA NOMBRE DEL CLUB\",CONCATENATE(A10,U10,V10))","v":"FALTA NOMBRE DEL CLUB"},{"$nulls":12},",de la Liga"," ",{"$f":"UPPER(AA10)","v":""},{"$f":"REPT(\"-\",50)","v":"--------------------------------------------------"}," ","Del Club CESIONARIO",{"$nulls":15},",de la Liga"," ",{"$nulls":12},"Octubre",10,2028," ATLÉTICO ROBERTS","LIGA BRAGADENSE DE FÚTBOL","ATLETICO VILLA BELGRANO","LIGA DEPORTIVA DEL OESTE (JUNÍN)"]
[null,null,{"$f":"IF(X11=\"\",\"FALTA NOMBRE DE LA LIGA\",UPPER(X11))","v":"FALTA NOMBRE DE LA LIGA"},{"$nulls":15},",para el Club CEDENTE (DE ORIGEN)"," ",{"$nulls":19},",para el Club CEDENTE (DE ORIGEN)"," ",{"$nulls":12},"Noviembre",11,2029," ATLÉTICO Y SOCIAL EL TRIUNFO","LIGA CHIVILCOYANA DE FÚTBOL","JORGE NEWBERY","LIGA DEPORTIVA DEL OESTE (JUNÍN)"]
[{"$f":"REPT(\"-\",50)","v":"--------------------------------------------------"}," ",{"$f":"IF(X12=\"\",\"FALTA NOMBRE DEL CLUB\",CONCATENATE(A12,U12,V12))","v":"FALTA NOMBRE DEL CLUB"},{"$nulls":15},",de la Liga"," ",{"$f":"UPPER(X12)","v":""},{"$f":"REPT(\"-\",50)","v":"--------------------------------------------------"}," ",{"$nulls":16},",de la Liga"," ",{"$nulls":12},"Diciembre",12,2030," ATLÉTICO Y SOCIAL SAN MARTIN","LIGA DEPORTIVA DE CHACABUCO","ORIGONE FOOT BALL CLUB","LIGA DEPORTIVA DEL OESTE (JUNÍN)"]
["--------------------------------------------------"," ",{"$f":"IF(X13=\"\",\"FALTA NOMBRE DE LA LIGA\",CONCATENATE(A13,U13,V13))","v":"--------------------------------------------------LIGA AMATEUR DE DEPORTES DE LINCOLN--------------------------------------------------"},{"$nulls":16}," ",{"$f":"UPPER(X13)","v":"LIGA AMATEUR DE DEPORTES DE LINCOLN"},"--------------------------------------------------"," ","Liga Amateur de Deportes de Lincoln",{"$nulls":16}," ",{"$nulls":13},13,null," DEPORTIVO SOCIAL DE LINCOLN SAN MIGUEL","LIGA DEPORTIVA DE COLÓN","RIVADAVIA","LIGA DEPORTIVA DEL OESTE (JUNÍN)"]
[{"$nulls":40}," ",{"$nulls":13},14,null," DEPORTIVO Y SOCIAL ARENAZA","LIGA MERCEDINA DE FÚTBOL","SOCIAL, CULTURAL Y DEPORTIVO BAIGORRITA","LIGA DEPORTIVA DEL OESTE (JUNÍN)"]
[{"$nulls":40}," ",{"$nulls":13},15,null," SOCIAL Y DEPORTIVO GENERAL PINTO","LIGA NUEVEJULIENSE DE FÚTBOL"]
[null,null,"En",{"$f":"PROPER(Y16)","v":""},{"$nulls":3},", a los",{"$f":"IF(AD16=\"\",\"\",AD16)","v":""},"días del mes de",null,null,{"$f":"PROPER(AH16)","v":""},null,null,"de",{"$f":"IF(AL16=\"\",\"\",AL16)","v":""},"entre los",{"$nulls":5},"En",{"$nulls":4},", a los",null,"días del mes de",{"$nulls":5},"de",null,"entre los",null," ",{"$nulls":13},16,null," SOCIAL Y DEPORTIVO VILLA FRANCIA","LIGA PEHUAJENSE DE FÚTBOL","***VEDIA***"]
[null," ","Clubes CEDENTE y CESIONARIO, representados en este acto por sus Presidentes y Secretarios, Señores:",{"$nulls":19}," ","Clubes CEDENTE y CESIONARIO, representados en este acto por sus Presidentes y Secretarios, Señores:",{"$nulls":16}," ",{"$nulls":13},17,null,null,"LIGA TRENQUELAUQUENSE DE FÚTBOL","ANCALU SPORT CLUB","LIGA DEPORTIVA CENTRAL VEDIA"]
[{"$f":"REPT(\"-\",50)","v":"--------------------------------------------------"}," ",{"$f":"IF(X18=\"\",\"\",CONCATENATE(A18,U18,V18))","v":""},{"$nulls":13},"  y Señores:",{"$nulls":3},{"$f":"UPPER(X18)","v":""},{"$f":"REPT(\"-\",50)","v":"--------------------------------------------------"}," ",{"$nulls":14},"y Señores:",null,null," ",{"$nulls":13},18,null,null,"LIGA VEINTICINQUEÑA DE FÚTBOL","CLUB ATLETICO VEDIA ALUMNI","LIGA DEPORTIVA CENTRAL VEDIA"]
[null," ","(Presidente y Secretario club Cedente)",{"$nulls":5},{"$f":"IF(AD19=\"\",\"\",AD19)","v":""},{"$nulls":13}," ","(Presidente y Secretario club Cedente)",{"$nulls":5},{"$f":"IF(X12=\"\",\"\",X12)","v":""},{"$nulls":10}," ",{"$nulls":13},19,{"$nulls":3},"DEFENSORES DE CHRISTOPHERSEN","LIGA DEPORTIVA CENTRAL VEDIA"]
[{"$f":"REPT(\"-\",50)","v":"--------------------------------------------------"}," ",{"$f":"IF(X20=\"\",\"\",CONCATENATE(A20,U20,V20))","v":""},{"$nulls":13},"y con la conformidad",{"$nulls":3},{"$f":"UPPER(X20)","v":""},{"$f":"REPT(\"-\",50)","v":"--------------------------------------------------"}," ",{"$nulls":14},"y con la conformidad",null,null," ",{"$nulls":13},20,{"$nulls":3},"DEPORTIVO SARMIENTO","LIGA DEPORTIVA CENTRAL VEDIA"]
[null," ","(Presidente y Secretario club Cesionario)",{"$nulls":5},{"$f":"UPPER(AD21)","v":""},{"$nulls":13}," ","(Presidente y Secretario club Cesionario)",{"$nulls":5},{"$f":"IF(AA10=\"\",\"\",AA10)","v":""},{"$nulls":10}," ",{"$nulls":13},21,{"$nulls":3},"DEPORTIVO Y RECREATIVO LEANDRO N. ALEM","LIGA DEPORTIVA CENTRAL VEDIA"]
[{"$f":"REPT(\"-\",50)","v":"--------------------------------------------------"}," ","del jugador,  señor",null,null,{"$f":"IF(AA22=\"\",\"FALTA NOMBRE DEL JUGADOR\",CONCATENATE(A22,U22,V22))","v":"FALTA NOMBRE DEL JUGADOR"},{"$nulls":12},", se ha for-",null,{"$f":"UPPER(AA22)","v":""},{"$f":"REPT(\"-\",50)","v":"--------------------------------------------------"}," ","del jugador,  señor",{"$nulls":15},", se ha for-"," ",{"$nulls":13},22,null,"………………..",null,"FOOT BALL CLUB MATIENZO","LIGA DEPORTIVA CENTRAL VEDIA"]
[null,null,"malizado este CONVENIO atento a las siguientes cláusulas:",{"$nulls":20},"malizado este CONVENIO atento a las siguientes cláusulas:",{"$nulls":16}," ",{"$nulls":13},23,{"$nulls":3},"HURACAN FOOT BALL CLUB","LIGA DEPORTIVA CENTRAL VEDIA"]
[{"$nulls":40}," ",{"$nulls":13},24,{"$nulls":3},"SOCIAL Y DEPORTIVO ALBERDI","LIGA DEPORTIVA CENTRAL VEDIA"]
[null,null,"PRIMERA:",null,"El  Club  CESIONARIO reintegra al JUGADOR al Club CEDENTE (DE ORIGEN) a partir de las CERO (0)  del día",{"$nulls":18},"PRIMERA:",null,"El  Club  CESIONARIO reintegra al JUGADOR al Club CEDENTE (DE ORIGEN) a partir de las CERO (0)  del",{"$nulls":14}," ",{"$nulls":13},25,{"$nulls":3},"SOCIAL Y DEPORTIVO ATLANTA","LIGA DEPORTIVA CENTRAL VEDIA"]
[null,null,"día",{"$f":"IF(Y26=\"\",\"\",Y26)","v":""},"del mes de",{"$f":"PROPER(AA26)","v":""},null,"de",{"$f":"IF(AD26=\"\",\"\",AD26)","v":""},{"$nulls":14},"día",null,"del mes de",null,null,"de",{"$nulls":11}," ",{"$nulls":13},26,{"$nulls":3},"SOCIAL Y DEPORTIVO BLAQUIER","LIGA DEPORTIVA CENTRAL VEDIA"]
[{"$nulls":40}," ",{"$nulls":13},27,{"$nulls":3},"SOCIAL Y DEPORTIVO MARTIN D. YRIGOYEN","LIGA DEPORTIVA CENTRAL VEDIA"]
[null,null,"SEGUNDA:",null,"Queda en claro que a partir de la fecha aludida en la Cláusula PRIMERA el Jugador no podrá actuar en ningún",{"$nulls":18},"SEGUNDA:",null,"Queda en claro que a partir de la fecha aludida en la Cláusula PRIMERA el Jugador no podrá actuar en nin-",{"$nulls":14}," ",{"$nulls":13},28,{"$nulls":3},"SOCIAL Y DEPORTIVO RIVER PLATE","LIGA DEPORTIVA CENTRAL VEDIA"]
[null,null,"tipo de competencia o partido a favor del Club CESIONARIO.",{"$nulls":20},"gún tipo de competencia o partido a favor del Club CESIONARIO.",{"$nulls":16}," ",{"$nulls":13},29,{"$nulls":3},"SOCIAL Y DEPORTIVO SARMIENTO","LIGA DEPORTIVA CENTRAL VEDIA"]
[{"$nulls":40}," ",{"$nulls":13},30,{"$nulls":3},"SOCIAL Y DEPORTIVO UNION","LIGA DEPORTIVA CENTRAL VEDIA"]
[null,null,"TERCERA:",null,"A partir de la fecha pactada y,  con el sólo requisito de la previa publicación del reintegro en el Boletín Ofi-",{"$nulls":18},"TERCERA:",null,"A partir de la fecha pactada y,  con el sólo requisito de la previa publicación del reintegro en el Boletín Ofi-",{"$nulls":14}," ",{"$nulls":13},31]
[null,null,"cial de la Liga a la que pertenece el Club CEDENTE (DE ORIGEN), el jugador quedará automaticamente habilitado para",{"$nulls":20},"cial de la Liga a la que pertenece el Club CEDENTE (DE ORIGEN), el jugador quedará automaticamente habilitado para",{"$nulls":16}," ",{"$nulls":17},"***VILLEGAS***"]
[null,null,"actuar a favor de éste último siempre que no exista una disposición expresa en contrario emanada de los Cuerpos de la",{"$nulls":20},"actuar a favor de éste último siempre que no exista una disposición expresa en contrario emanada de los Cuerpos de la",{"$nulls":16}," ",{"$nulls":17},"ATLETICO AMEGHINO","LIGA DE FÚTBOL DE GENERAL VILLEGAS"]
[null,null,"referida Liga con facultades al efecto.",{"$nulls":20},"referida Liga con facultades al efecto.",{"$nulls":16}," ",{"$nulls":17},"ATLETICO CHARLONE","LIGA DE FÚTBOL DE GENERAL VILLEGAS"]
[{"$nulls":40}," ",{"$nulls":17},"ATLETICO JUVENTUD UNIDA","LIGA DE FÚTBOL DE GENERAL VILLEGAS"]
[null,null,"CUARTA:",null,"Toda otra cláusula pactada debera hacerse constar al dorso del presente formulario, en el rubro destinado a",{"$nulls":18},"CUARTA:",null,"Toda otra cláusula pactada debera hacerse constar al dorso del presente formulario, en el rubro destinado a",{"$nulls":14}," ",{"$nulls":17},"ATLETICO SOCIAL CAÑADIENSE","LIGA DE FÚTBOL DE GENERAL VILLEGAS"]
[null,null,"\"CLÁUSULAS ANEXAS\".",{"$nulls":20},"\"CLÁUSULAS ANEXAS\".",{"$nulls":16}," ",{"$nulls":17},"ATLETICO VILLEGAS","LIGA DE FÚTBOL DE GENERAL VILLEGAS"]
[{"$nulls":40}," ",{"$nulls":17},"ATLETICO Y SOCIAL CAÑADA SECA","LIGA DE FÚTBOL DE GENERAL VILLEGAS"]
[null,null,"QUINTA:",null,"La rescisión de la Transferencia a  Prueba del mencionado jugador se realiza con estricta sujeción a las dispo",{"$nulls":18},"QUINTA:",null,"La rescisión de la Transferencia a  Prueba del mencionado jugador se realiza con estricta sujeción a las",{"$nulls":14}," ",{"$nulls":17},"CENTRO EMPLEADOS DE COMERCIO","LIGA DE FÚTBOL DE GENERAL VILLEGAS"]
[null,null,"posiciones reglamentarias vigentes y que los dos Clubes y el Jugador declaran conocer y aceptar.",{"$nulls":20},"disposiciones reglamentarias vigentes y que los dos Clubes y el Jugador declaran conocer y aceptar.",{"$nulls":16}," ",{"$nulls":17},"CIRCULO ITALIANO DEPORTIVO Y RECREATIVO","LIGA DE FÚTBOL DE GENERAL VILLEGAS"]
[{"$nulls":40}," ",{"$nulls":17},"DEPORTIVO Y SOCIAL INGENIERO WHITE","LIGA DE FÚTBOL DE GENERAL VILLEGAS"]
[null,null,"SEXTA:",null,"En prueba de conformidad se firman CINCO  (5) ejemplares en un mismo tenor y al mismo efecto, correspon-",{"$nulls":18},"SEXTA:",null,"En prueba de conformidad se firman CINCO  (5) ejemplares en un mismo tenor y al mismo efecto, correspon-",{"$nulls":14}," ",{"$nulls":17},"ECLIPSE","LIGA DE FÚTBOL DE GENERAL VILLEGAS"]
[null,null,"diendo uno a cada Club, uno al Jugador y uno a cada Liga.",{"$nulls":20},"diendo uno a cada Club, uno al Jugador y uno a cada Liga.",{"$nulls":16}," ",{"$nulls":17},"FÚTBOL CLUB BUNGE","LIGA DE FÚTBOL DE GENERAL VILLEGAS"]
[{"$nulls":40}," ",{"$nulls":17},"LARROUDE FÚTBOL CLUB","LIGA DE FÚTBOL DE GENERAL VILLEGAS"]
[{"$nulls":40}," ",{"$nulls":17},"SOCIAL COSMOPOLITA RECREATIVA Y SPORTIVA","LIGA DE FÚTBOL DE GENERAL VILLEGAS"]
[{"$nulls":40}," ",{"$nulls":17},"SOCIAL Y DEPORTIVO SARMIENTO","LIGA DE FÚTBOL DE GENERAL VILLEGAS"]
[{"$nulls":40}," ",{"$nulls":17},"SOCIAL, CULTURAL Y DEPORTIVO SANTA RITA","LIGA DE FÚTBOL DE GENERAL VILLEGAS"]
[{"$nulls":40}," ",{"$nulls":17},"SPORTIVO VILLEGAS","LIGA DE FÚTBOL DE GENERAL VILLEGAS"]
[{"$nulls":40}," ",{"$nulls":17},"VILLA REGINA","LIGA DE FÚTBOL DE GENERAL VILLEGAS"]
[{"$nulls":40}," "]
[{"$nulls":4},"Presidente del Club Cedente",{"$nulls":5},"Presidente del Club Cesionario",{"$nulls":14},"Presidente del Club Cedente",{"$nulls":5},"Presidente del Club Cesionario",{"$nulls":8}," ",{"$nulls":17},"***AMERICA***"]
[{"$nulls":4},{"$f":"UPPER(Z52)","v":""},{"$nulls":5},{"$f":"UPPER(AF52)","v":""},{"$nulls":14},{"$f":"IF(X12=\"\",\"\",X12)","v":""},{"$nulls":5},{"$f":"IF(AA10=\"\",\"\",AA10)","v":""},{"$nulls":8}," ",{"$nulls":17},"ARGENTINO","LIGA DE FÚTBOL DEL OESTE (AMÉRICA/RIVADAVIA)"]
[{"$nulls":40}," ",{"$nulls":17},"ATLETICO AMIGOS DE GORRA DE CUERO","LIGA DE FÚTBOL DEL OESTE (AMÉRICA/RIVADAVIA)"]
[{"$nulls":40}," ",{"$nulls":17},"ATLETICO BARRIO NORTE","LIGA DE FÚTBOL DEL OESTE (AMÉRICA/RIVADAVIA)"]
[{"$nulls":40}," ",{"$nulls":17},"ATLETICO RIVADAVIA","LIGA DE FÚTBOL DEL OESTE (AMÉRICA/RIVADAVIA)"]
[{"$nulls":40}," ",{"$nulls":17},"DEPORTIVO Y SOCIAL LOS ONCE","LIGA DE FÚTBOL DEL OESTE (AMÉRICA/RIVADAVIA)"]
[{"$nulls":40}," ",{"$nulls":17},"ESCUELA DE FÚTBOL PATITA SANCHEZ","LIGA DE FÚTBOL DEL OESTE (AMÉRICA/RIVADAVIA)"]
[{"$nulls":4},"Secretario del Club Cedente",{"$nulls":5},"Secretario del Club Cesionario",{"$nulls":14},"Secretario del Club Cedente",{"$nulls":5},"Secretario del Club Cesionario",{"$nulls":8}," ",{"$nulls":17},"FÚTBOL CLUB TRES ALGARROBOS","LIGA DE FÚTBOL DEL OESTE (AMÉRICA/RIVADAVIA)"]
[{"$nulls":4},{"$f":"UPPER(Z59)","v":""},{"$nulls":5},{"$f":"UPPER(AF59)","v":""},{"$nulls":14},{"$f":"IF(X12=\"\",\"\",X12)","v":""},{"$nulls":5},{"$f":"IF(AA10=\"\",\"\",AA10)","v":""},{"$nulls":8}," ",{"$nulls":17},"INDEPENDIENTE FOOT BALL CLUB","LIGA DE FÚTBOL DEL OESTE (AMÉRICA/RIVADAVIA)"]
[{"$nulls":40}," ",{"$nulls":17},"RACING FOOT BALL CLUB","LIGA DE FÚTBOL DEL OESTE (AMÉRICA/RIVADAVIA)"]
[{"$nulls":40}," ",{"$nulls":17},"ROOSEVELT","LIGA DE FÚTBOL DEL OESTE (AMÉRICA/RIVADAVIA)"]
[{"$nulls":40}," ",{"$nulls":17},"SANSINENA FÚTBOL CLUB","LIGA DE FÚTBOL DEL OESTE (AMÉRICA/RIVADAVIA)"]
[{"$nulls":40}," ",{"$nulls":17},"SOCIAL Y ATLETICO JORGE NEWBERY","LIGA DE FÚTBOL DEL OESTE (AMÉRICA/RIVADAVIA)"]
[{"$nulls":40}," ",{"$nulls":17},"SOCIAL Y DEPORTIVO GONZALEZ MORENO","LIGA DE FÚTBOL DEL OESTE (AMÉRICA/RIVADAVIA)"]
[{"$nulls":8},"Firma del Jugador",{"$nulls":20},"Firma del Jugador",{"$nulls":10}," ",{"$nulls":17},"SOCIAL Y DEPORTIVO INDEPENDIENTE FÚTBOL CLUB","LIGA DE FÚTBOL DEL OESTE (AMÉRICA/RIVADAVIA)"]
[{"$nulls":58},"SOCIAL Y DEPORTIVO TRES ALGARROBOS","LIGA DE FÚTBOL DEL OESTE (AMÉRICA/RIVADAVIA)"]
[]
[{"$nulls":58},"***LOS TOLDOS***"]
[{"$nulls":58},"ATLETICO BELGRANO","LIGA TOLDENSE DE FÚTBOL"]
[{"$nulls":58},"ATLETICO DEFENSORES DE BELGRANO","LIGA TOLDENSE DE FÚTBOL"]
[{"$nulls":58},"ATLETICO IGNACIO COLIQUEO","LIGA TOLDENSE DE FÚTBOL"]
[{"$nulls":58},"ATLETICO JUAN EL BUENO","LIGA TOLDENSE DE FÚTBOL"]
[{"$nulls":58},"ATLETICO LA DELFINA","LIGA TOLDENSE DE FÚTBOL"]
[{"$nulls":58},"ATLETICO RIVER PLATE","LIGA TOLDENSE DE FÚTBOL"]
[{"$nulls":58},"CENTRO DE EDUCACIÓN FISICA Nº 94","LIGA TOLDENSE DE FÚTBOL"]
[{"$nulls":58},"JUVENTUD ALSINA","LIGA TOLDENSE DE FÚTBOL"]
[{"$nulls":58},"SPORTIVO ZAVALÍA","LIGA TOLDENSE DE FÚTBOL"]
[{"$nulls":58},"VIAMONTE FÚTBOL CLUB","LIGA TOLDENSE DE FÚTBOL"]
[]
[{"$nulls":58},"***ARENALES***"]
[{"$nulls":58},"AGUSTINA FÚTBOL CLUB","LIGA DEPORTIVA DE GENERAL ARENALES"]
[{"$nulls":58},"ARENALES FOOT BALL CLUB","LIGA DEPORTIVA DE GENERAL ARENALES"]
[{"$nulls":58},"ASOC. CULTURAL Y DEP. HURACAN FOOT BAAL CLUB ","LIGA DEPORTIVA DE GENERAL ARENALES"]
[{"$nulls":58},"ATLETICO FORTIN TIBURCIO","LIGA DEPORTIVA DE GENERAL ARENALES"]
[{"$nulls":58},"ATLETICO ONCE ESTRELLAS","LIGA DEPORTIVA DE GENERAL ARENALES"]
[{"$nulls":58},"COLONIAL FERRÉ","LIGA DEPORTIVA DE GENERAL ARENALES"]
[{"$nulls":58},"ESCUELA AGROTÉCNICA SALESIANA LA TRINIDAD","LIGA DEPORTIVA DE GENERAL ARENALES"]
[{"$nulls":58},"LA PINTA FOOT BALL CLUB","LIGA DEPORTIVA DE GENERAL ARENALES"]
[{"$nulls":58},"LOS DIABLOS ROJOS SOCIAL Y DEPORTIVO","LIGA DEPORTIVA DE GENERAL ARENALES"]
[{"$nulls":58},"SINGLAR CLUB SOCIAL Y DEPORTIVO","LIGA DEPORTIVA DE GENERAL ARENALES"]
[{"$nulls":58},"SOCIAL Y DEPORTIVO 12 DE OCTUBRE","LIGA DEPORTIVA DE GENERAL ARENALES"]
[{"$nulls":58},"SOCIAL Y DEPORTIVO ASCENSION","LIGA DEPORTIVA DE GENERAL ARENALES"]
[{"$nulls":58},"SOCIAL Y DEPORTIVO BELGRANO","LIGA DEPORTIVA DE GENERAL ARENALES"]
[]
[{"$nulls":58},"***ROJAS***"]
[{"$nulls":58},"ATLETICO ARGENTINO","LIGA DEPORTIVA DE FÚTBOL (ROJAS)"]
[{"$nulls":58},"ATLETICO BOCA JUNIORS","LIGA DEPORTIVA DE FÚTBOL (ROJAS)"]
[{"$nulls":58},"ATLETICO EL HURACAN","LIGA DEPORTIVA DE FÚTBOL (ROJAS)"]
[{"$nulls":58},"ATLETICO JORGE NEWBERY","LIGA DEPORTIVA DE FÚTBOL (ROJAS)"]
[{"$nulls":58},"ATLETICO JUVENTUD","LIGA DEPORTIVA DE FÚTBOL (ROJAS)"]
[{"$nulls":58},"ATLETICO SAN JOSE","LIGA DEPORTIVA DE FÚTBOL (ROJAS)"]
[{"$nulls":58},"CARABELAS","LIGA DEPORTIVA DE FÚTBOL (ROJAS)"]
[{"$nulls":58},"DEPORTIVO UNIÓN","LIGA DEPORTIVA DE FÚTBOL (ROJAS)"]
[]
[{"$nulls":58},"***CARLOS CASARES***"]
[{"$nulls":58},"ATLETICO AGROPECUARIO ARGENTINO","LIGA CASARENSE DE FÚTBOL"]
[{"$nulls":58},"ATLETICO ARGENTINA 78","LIGA CASARENSE DE FÚTBOL"]
[{"$nulls":58},"ATLETICO BOCA CARLOS CASARES","LIGA CASARENSE DE FÚTBOL"]
[{"$nulls":58},"ATLETICO DE CARLOS CASARES","LIGA CASARENSE DE FÚTBOL"]
[{"$nulls":58},"ATLETICO DE MOCTEZUMA","LIGA CASARENSE DE FÚTBOL"]
[{"$nulls":58},"ATLETICO DEFENSORES DE CADRET","LIGA CASARENSE DE FÚTBOL"]
[{"$nulls":58},"ATLETICO SMITH","LIGA CASARENSE DE FÚTBOL"]
[{"$nulls":58},"DEPORTIVO CASARES","LIGA CASARENSE DE FÚTBOL"]
[{"$nulls":58},"SOCIAL Y DEPORTIVO BELLOCQ","LIGA CASARENSE DE FÚTBOL"]
[]
[{"$nulls":58},"***PEHUAJO***"]
[{"$nulls":58},"ATLETICO BOCA JUNIOR","LIGA PEHUAJENSE DE FÚTBOL"]
[{"$nulls":58},"ATLETICO CALAVERAS","LIGA PEHUAJENSE DE FÚTBOL"]
[{"$nulls":58},"ATLETICO DEFENSORES DEL ESTE","LIGA PEHUAJENSE DE FÚTBOL"]
[{"$nulls":58},"ATLETICO EMPLEADOS DE COMERCIO","LIGA PEHUAJENSE DE FÚTBOL"]
[{"$nulls":58},"ATLETICO ESTUDIANTES UNIDOS","LIGA PEHUAJENSE DE FÚTBOL"]
[{"$nulls":58},"ATLETICO GENERAL SAN MARTIN","LIGA PEHUAJENSE DE FÚTBOL"]
[{"$nulls":58},"ATLETICO INDEPENDIENTE","LIGA PEHUAJENSE DE FÚTBOL"]
[{"$nulls":58},"ATLETICO JUVENTUD UNIDA","LIGA PEHUAJENSE DE FÚTBOL"]
[{"$nulls":58},"ATLETICO K.D.T.","LIGA PEHUAJENSE DE FÚTBOL"]
[{"$nulls":58},"ATLETICO MADERENSE","LIGA PEHUAJENSE DE FÚTBOL"]
[{"$nulls":58},"ATLETICO MONES CAZON","LIGA PEHUAJENSE DE FÚTBOL"]
[{"$nulls":58},"ATLETICO PEHUAJÓ","LIGA PEHUAJENSE DE FÚTBOL"]
[{"$nulls":58},"ATLETICO URDAMPILLETA","LIGA PEHUAJENSE DE FÚTBOL"]
[{"$nulls":58},"BALOMPIE FUTBOL CLUB","LIGA PEHUAJENSE DE FÚTBOL"]
[{"$nulls":58},"BANCARIOS","LIGA PEHUAJENSE DE FÚTBOL"]
[{"$nulls":58},"BULL DOG","LIGA PEHUAJENSE DE FÚTBOL"]
[{"$nulls":58},"DEPORTIVO ARGENTINO","LIGA PEHUAJENSE DE FÚTBOL"]
[{"$nulls":58},"FUTBOL CLUB HENDERSON","LIGA PEHUAJENSE DE FÚTBOL"]
[{"$nulls":58},"SOCIAL Y DEPORTIVO INDEPENDIENTE","LIGA PEHUAJENSE DE FÚTBOL"]
[{"$nulls":58},"SOCIAL Y DEPORTIVO PROGRESO","LIGA PEHUAJENSE DE FÚTBOL"]
[{"$nulls":58},"SOCIAL Y DEPORTIVO UNION","LIGA PEHUAJENSE DE FÚTBOL"]
[{"$nulls":58},"SOCIAL Y DEPORTIVO UNZUÉ","LIGA PEHUAJENSE DE FÚTBOL"]
[{"$nulls":58},"HURACAN FÚTBOL CLUB","LIGA PEHUAJENSE DE FÚTBOL"]

{"sheet":"dorso","index":1,"n_rows":52,"n_cols":16,"rows_kept":52,"merged":[[0,2,0,18],[1,2,1,18],[2,2,2,18],[3,2,3,18],[4,2,4,18],[5,2,5,18],[6,2,6,18],[7,2,7,18],[8,2,8,18],[9,2,9,18],[10,2,10,18],[11,2,11,18],[12,2,12,18],[13,2,13,18],[14,2,14,18],[24,4,24,8],[24,10,24,16],[25,4,25,8],[25,10,25,16],[30,4,30,8],[30,10,30,16],[31,4,31,8],[31,10,31,16],[38,8,38,10],[41,3,41,17],[46,3,47,17],[48,4,48,8],[48,10,48,16],[51,4,51,8],[51,10,51,16]]}
[null,null,"FORMULARIOS PARA TRANSFERENCIAS INTERLIGAS"]
[null,null,"CLAUSULAS ANEXAS"]
{"$rows_empty":14}
[{"$nulls":3},"Nota:","I - Los espacios en blanco deberán ser cruzados."]
[{"$nulls":4},"II - A los fines de tener validez lo pactado en estas \"Cláusulas Anexas\" deberán firmar al pié"]
[{"$nulls":4},"y en prueba de conformidad los mismos firmantes del anverso."]
[]
[]
[]
[]
[]
[{"$nulls":4},"Firma Presidente del Club Cedente",{"$nulls":5},"Firma Presidente del Club Cesionario"]
[{"$nulls":4},{"$f":"IF(frente!C12=\"\",\"\",frente!C12)","v":"FALTA NOMBRE DEL CLUB"},{"$nulls":5},{"$f":"IF(frente!F10=\"\",\"\",frente!F10)","v":"FALTA NOMBRE DEL CLUB"}]
[]
[]
[]
[]
[{"$nulls":4},"Firma Secretario del Club Cedente",{"$nulls":5},"Firma Secretario del Club Cesionario"]
[{"$nulls":4},{"$f":"IF(frente!C12=\"\",\"\",frente!C12)","v":"FALTA NOMBRE DEL CLUB"},{"$nulls":5},{"$f":"IF(frente!F10=\"\",\"\",frente!F10)","v":"FALTA NOMBRE DEL CLUB"}]
[]
[]
[]
[]
[]
[]
[{"$nulls":8},"Jugador"]
[]
[]
[{"$nulls":3},"Recibo por la Liga del Club CESIONARIO para ser remitido a su similar Club CEDENTE"]
[{"$nulls":4},"(art. 13º, inc. d, del R.T.I.):"]
[]
[{"$nulls":5},"Fecha:",null,"/","/",{"$nulls":6},"Hora:"]
[]
[{"$nulls":3},"(Sello de la Liga)"]
[]
[]
[]
[]
[{"$nulls":4},"(Firma por la Liga)",{"$nulls":5},"(Aclaración de firma)"]